[Event "44th Chess Olympiad Open 2022"]
[Site "Chennai"]
[Date "2022.08.05"]
[Round "7.56"]
[White "Junior, Domingos"]
[Black "Salim Issa, Ali Shamas"]
[Result "1-0"]
[ECO "B75"]
[WhiteElo "2107"]
[BlackElo "1851"]
[Annotator "NA RC"]
[PlyCount "67"]
[EventDate "2022.07.29"]
[EventType "team-tourn"]
[EventCountry "IND"]
[SourceTitle "playchess.com"]
[Source "ChessBase"]
[SourceQuality "1"]
[WhiteTeam "Angola"]
[BlackTeam "OMA"]
[WhiteTeamCountry "ANG"]
[TimeControl "40/5400+30:1800+30"]

1. e4 {[%emt 0:00:02]} c5 {[%emt 0:02:22]} 2. Nf3 {[%emt 0:00:11]} d6 {[%emt 0:00:25]} 3. d4 {[%emt 0:00:04]} cxd4 {[%emt 0:00:10]} 4. Nxd4 {[%emt 0:00:03]} Nf6 {[%emt 0:00:30]} 5. Nc3 {[%emt 0:00:03]} g6 {[%emt 0:00:16]} 6. Bc4 {[%emt 0:00:04]} Bg7 {[%emt 0:00:19]} 7. f3 {[%emt 0:00:11]} Nc6 {[%emt 0:00:23]} 8. Be3 {[%emt 0:00:04]} Bd7 {[%emt 0:00:17]} 9. Qd2 {[%emt 0:00:14]} a6 {[%emt 0:01:31]} 10. O-O-O {[%emt 0:00:20]} Na5 {[%emt 0:00:48]} 11. Bb3 {[%emt 0:01:21]} Qc7 {[%emt 0:01:15]} 12. g4 {[%emt 0:01:07]} Rc8 {[%emt 0:00:37]} 13. Kb1 {[%emt 0:00:51]} b5 {[%emt 0:00:35]} 14. g5 {[%emt 0:03:42]} Nh5 {[%emt 0:01:16]} 15. Nd5 {[%emt 0:01:58]} Qd8 {[%emt 0:00:58]} 16. Ne2 {[%emt 0:02:01]} Nc4 {[%emt 0:00:57]} 17. Bxc4 {[%emt 0:00:21]} Rxc4 {[%emt 0:00:09]} 18. b3 {[%emt 0:01:41]} Rc6 {[%emt 0:00:13]} 19. Ng3 {[%emt 0:00:48]} Nxg3 {[%emt 0:00:52]} 20. hxg3 {[%emt 0:00:03]} a5 {[%emt 0:00:28]} 21. Bd4 {[%emt 0:00:21]} e5 {[%emt 0:01:27]} 22. Bc3 {[%emt 0:01:29]} b4 {[%emt 0:00:43]} 23. Bb2 {[%emt 0:00:04]} Be6 {[%emt 0:00:11]} 24. f4 {[%emt 0:02:18]} Kf8 {[%emt 0:01:40]} 25. Ne3 {[%emt 0:01:20]} exf4 {[%emt 0:01:06]} 26. Bxg7+ {[%emt 0:00:19]} Kxg7 {[%emt 0:00:31]} 27. Qd4+ {[%emt 0:00:01]} f6 {[%emt 0:01:23]} 28. gxf4 {[%emt 0:00:10]} a4 {[%emt 0:01:48]} 29. f5 {[%emt 0:00:24]} Bf7 {[%emt 0:01:47]} 30. Ng4 {[%emt 0:01:01]} gxf5 {[%emt 0:01:14]} 31. Nxf6 {[%emt 0:00:50]} Bg6 {[%emt 0:01:33]} 32. Nh5+ {[%emt 0:00:48]} Kf7 {[%emt 0:00:37]} 33. Qg7+ {[%emt 0:00:08]} Ke6 {[%emt 0:00:42]} 34. Nf4# {[%emt 0:00:04]} 1-0

[Event "44th Chess Olympiad Open 2022"]
[Site "Chennai"]
[Date "2022.08.05"]
[Round "7.56"]
[White "Salim Mohammed, Salim Al Amri"]
[Black "Dias, Vanderson"]
[Result "0-1"]
[ECO "B10"]
[WhiteElo "1917"]
[BlackElo "2139"]
[Annotator "TA"]
[PlyCount "134"]
[EventDate "2022.07.29"]
[EventType "team-tourn"]
[EventCountry "IND"]
[SourceTitle "playchess.com"]
[Source "ChessBase"]
[SourceQuality "1"]
[WhiteTeam "OMA"]
[BlackTeam "Angola"]
[BlackTeamCountry "ANG"]
[TimeControl "40/5400+30:1800+30"]

{[%evp 9,134,-80,-42,-63,-55,-45,-41,-44,-41,-30,0,-62,-51,-42,-39,-55,-40,-60,-53,-56,-13,-49,-51,-62,-65,-85,-82,-90,-58,-88,-88,-100,-89,-89,-93,-106,-66,-84,-69,-86,-52,-146,-129,-130,-123,-135,-89,-119,-94,-126,-114,-114,-129,-130,-107,-147,-129,-140,-78,-168,-109,-127,-127,-128,-117,-156,-131,-127,-127,-216,-225,-225,-225,-225,-222,-225,-161,-296,-307,-342,-351,-332,-243,-227,-242,-575,-524,-614,-614,-597,-608,-554,-437,-395,-259,-632,-572,-6107,-5197,-29981,-29982,-29982,-29983,-29983,-29982,-29982,-29983,-29991,-29988,-29991,-29991,-29993,-29994,-29994,-29995,-29995,-29996,-29996,-29997,-29997,-29994,-29994,-29995,-29995,-29996,-29996,-5517]} 1. e4 {[%emt 0:00:03]} c6 {[%emt 0:04:06]} 2. Nf3 {[%emt 0:00:09]} d5 {[%emt 0:00:13]} 3. d3 {[%emt 0:00:10]} dxe4 {[%emt 0:03:05]} 4. Ng5 {[%emt 0:01:17]} Nf6 {[%emt 0:02:50]} 5. Nc3 {[%emt 0:00:20]} exd3 {[%emt 0:12:37]} 6. Bxd3 {[%emt 0:00:18][%cal Og5f7] [#] Black must now prevent Nxf7! B10: Caro-Kann: 2 d3 and 2 c4.} Qc7 $146 {[%emt 0:00:24]} ({Predecessor:} 6... h6 7. Nxf7 Qc7 8. Nxh8 Bg4 9. Bg6# {1-0 (9) Korolev,N (1517)-Kolomeets,D (1212) Sochi 2019}) 7. O-O {[%emt 0:00:54]} h6 {[%emt 0:11:20]} 8. Nge4 {[%emt 0:00:02] Black is slightly better.} Nxe4 {[%emt 0:15:01]} ({Reject} 8... Ng4 9. f4 $14) 9. Nxe4 {[%emt 0:00:03]} g6 {[%emt 0:01:08]} 10. Be3 {[%emt 0:12:51]} ({White should play} 10. Qf3 $11) 10... Bg7 $15 {[%emt 0:00:13]} 11. Qd2 {[%emt 0:00:12]} Bf5 {[%emt 0:06:15]} 12. Rfe1 {[%emt 0:05:47]} Bxe4 {[%emt 0:03:27]} (12... Bxb2 $2 13. Bf4 Be5 14. Bxe5 Qxe5 15. Qb4 $16) 13. Bxe4 {[%emt 0:00:02]} Nd7 {[%emt 0:02:18][%cal Bb8d7,Bd7f6,Bf6h7][%mdl 32]} 14. Rad1 {[%emt 0:00:48]} Rd8 {[%emt 0:08:36]} 15. Qc1 {[%emt 0:06:52]} h5 {[%emt 0:05:25]} 16. Bg5 {[%emt 0:00:30][%cal Oe4g6]} Nf6 {[%emt 0:01:47]} 17. Bd3 {[%emt 0:01:05]} O-O {[%emt 0:00:40]} 18. h3 {[%emt 0:05:14]} Rfe8 {[%emt 0:01:29]} 19. c4 {[%emt 0:03:45]} Nh7 {[%emt 0:01:15]} 20. Be3 {[%emt 0:00:27]} c5 {[%emt 0:01:54]} (20... Rd7 {is interesting.} 21. Bf4 Bxb2 22. Qxb2 Qxf4 23. Bxg6 Red8) 21. Be4 {[%emt 0:02:46]} b6 {[%emt 0:02:16]} 22. Bf4 {[%emt 0:02:43]} e5 {[%emt 0:01:51]} 23. Bg3 {[%emt 0:01:34]} Rxd1 {[%emt 0:00:34]} 24. Rxd1 {[%emt 0:00:07]} Rd8 {[%emt 0:00:36]} 25. Bh4 {[%emt 0:00:24]} ({White should try} 25. Re1 $15) 25... Rxd1+ {[%emt 0:00:47]} 26. Qxd1 {[%emt 0:00:02] [#]} Bf6 $1 {[%emt 0:00:50]} 27. Bg3 {[%emt 0:00:38]} Kg7 {[%emt 0:02:27]} (27... Bg5 $142 28. Qf3 Qd6) 28. Qd2 {[%emt 0:03:37]} Qe7 {[%emt 0:01:07]} 29. f3 {[%emt 0:02:03]} Ng5 {[%emt 0:02:18]} 30. Bd5 {[%emt 0:00:22]} e4 {[%emt 0:01:31] Hoping for ...exf3.} 31. h4 {[%emt 0:01:24]} e3 {[%emt 0:00:17]} 32. Qe2 {[%emt 0:00:47]} Nh7 {[%emt 0:01:00]} 33. Bf4 {[%emt 0:00:34]} Bxh4 {[%emt 0:01:45]} (33... Be5 $142 34. Bxe3 (34. Qxe3 $2 Bd4 $19) 34... Qxh4 35. Bh6+ Kf6 36. Bg7+ Kxg7 37. Qxe5+ Nf6) 34. Bxe3 {[%emt 0:00:16]} (34. Qxe3 $17 Qxe3+ 35. Bxe3) 34... Bf6 {[%emt 0:02:18]} (34... Bg5 $19 35. Kf2 Bxe3+ 36. Qxe3 Qh4+ 37. Kf1 Qf6) 35. Qd2 {[%emt 0:00:52]} Bg5 {[%emt 0:00:57]} 36. f4 {[%emt 0:00:26]} Bf6 {[%emt 0:00:13]} 37. Qf2 {[%emt 0:00:42]} Nf8 {[%emt 0:00:41]} 38. g3 {[%emt 0:00:22]} Ne6 {[%emt 0:00:44]} 39. f5 {[%emt 0:00:37]} (39. b3 $17 {was called for.}) 39... Nd4 $19 {[%emt 0:00:49]} 40. fxg6 {[%emt 0:00:29]} fxg6 {[%emt 0:00:17]} 41. Kg2 {[%emt 0:30:07] [#]} Nf5 {[%emt 0:30:34]} 42. Bf4 {[%emt 0:02:06]} Be5 {[%emt 0:01:19]} 43. Qd2 {[%emt 0:07:27]} (43. Be4 $142) 43... Bxf4 {[%emt 0:00:41]} 44. Qxf4 {[%emt 0:00:05][%mdl 4096] Endgame KQB-KQN} Qe2+ {[%emt 0:00:39]} 45. Kh3 {[%emt 0:00:27]} Qe3 {[%emt 0:01:51]} 46. Qb8 {[%emt 0:00:40]} h4 {[%emt 0:00:00][%cal Rh4g3]} 47. Qxa7+ $2 {[%emt 0:00:00]} (47. Qc7+ {is more resistant.} Kh6 48. Qf4+ Qxf4 49. gxf4) 47... Kh6 {[%emt 0:00:00][%csl Gf5,Gh4][%cal Re3g3]} 48. Qb8 {[%emt 0:00:00]} hxg3 {[%emt 0:00:00]} 49. Qf8+ {[%emt 0:00:00]} Kg5 {[%emt 0:00:00]} 50. Qd8+ {[%emt 0:00:00]} Qe7 {[%emt 0:00:00]} 51. Qxe7+ {[%emt 0:07:35]} Nxe7 {[%emt 0:00:00] KB-KN} 52. Bb7 {[%emt 0:00:02]} (52. Kxg3 Nxd5 53. cxd5 Kf5 $19) (52. Be6) 52... Kf4 {[%emt 0:00:00]} 53. a3 {[%emt 0:00:01]} Nf5 {[%emt 0:00:00] ( -> ...Ne3)} 54. b4 {[%emt 0:01:09]} Ne3 {[%emt 0:00:00] Black mates.} 55. bxc5 {[%emt 0:00:58]} bxc5 {[%emt 0:00:00]} 56. a4 {[%emt 0:13:53]} Nxc4 {[%emt 0:00:00]} 57. Ba6 {[%emt 0:01:22]} Ne3 {[%emt 0:00:00]} 58. Bd3 {[%emt 0:01:59]} g5 {[%emt 0:00:00]} 59. Be2 {[%emt 0:01:31]} g4+ {[%emt 0:00:07]} 60. Bxg4 {[%emt 0:00:37]} g2 {[%emt 0:02:03]} 61. Kh2 {[%emt 0:00:03]} Kxg4 {[%emt 0:00:17] KN-KP} 62. a5 {[%emt 0:00:12]} Kf3 {[%emt 0:00:22]} 63. Kg1 {[%emt 0:00:09]} Nd5 {[%emt 0:00:47]} 64. a6 {[%emt 0:00:10]} c4 {[%emt 0:00:43]} 65. a7 {[%emt 0:00:13]} Nc7 {[%emt 0:01:06]} 66. a8=R {[%emt 0:00:54]} Nxa8 {[%emt 0:00:00]} 67. Kh2 {[%emt 0:00:02]} Kf2 {[%emt 0:00:00] Weighted Error Value: White=0.52/Black=0.15 (very precise)} 0-1

[Event "44th Chess Olympiad Open 2022"]
[Site "Chennai"]
[Date "2022.08.05"]
[Round "7.57"]
[White "Guzman, Christopher"]
[Black "Asante Debesai Zerabruk"]
[Result "1-0"]
[ECO "B07"]
[WhiteElo "2243"]
[BlackElo "1785"]
[Annotator "NA RC"]
[PlyCount "79"]
[EventDate "2022.07.29"]
[EventType "team-tourn"]
[EventCountry "IND"]
[SourceTitle "playchess.com"]
[Source "ChessBase"]
[SourceQuality "1"]
[WhiteTeam "Dominican Republic"]
[BlackTeam "Eritrea"]
[WhiteTeamCountry "DOM"]
[BlackTeamCountry "ERI"]
[TimeControl "40/5400+30:1800+30"]

1. e4 {[%emt 0:00:03]} d6 {[%emt 0:00:43]} 2. d4 {[%emt 0:00:07]} Nf6 {[%emt 0:00:07]} 3. Nc3 {[%emt 0:00:07]} Nbd7 {[%emt 0:00:17]} 4. g3 {[%emt 0:01:10]} e5 {[%emt 0:00:59]} 5. Bg2 {[%emt 0:00:10]} Be7 {[%emt 0:01:09]} 6. Nge2 {[%emt 0:00:09]} c6 {[%emt 0:04:17]} 7. a4 {[%emt 0:00:08]} a5 {[%emt 0:01:18]} 8. O-O {[%emt 0:00:30]} O-O {[%emt 0:01:03]} 9. h3 {[%emt 0:00:04]} Re8 {[%emt 0:09:08]} 10. Kh2 {[%emt 0:01:10]} Qc7 {[%emt 0:01:30]} 11. Be3 {[%emt 0:00:55]} Bf8 {[%emt 0:02:03]} 12. f4 {[%emt 0:02:51]} g6 {[%emt 0:09:44]} 13. Qd2 {[%emt 0:05:29]} b6 {[%emt 0:11:47]} 14. Rad1 {[%emt 0:14:36]} Ba6 {[%emt 0:09:54]} 15. Rfe1 {[%emt 0:03:09]} Rad8 {[%emt 0:03:45]} 16. Ng1 {[%emt 0:00:33]} Nh5 {[%emt 0:10:29]} 17. Qf2 {[%emt 0:01:17]} Bh6 {[%emt 0:09:04]} 18. d5 {[%emt 0:09:16]} c5 {[%emt 0:02:10]} 19. Bf1 {[%emt 0:01:20]} Bxf1 {[%emt 0:08:04]} 20. Qxf1 {[%emt 0:01:09]} exf4 {[%emt 0:01:56]} 21. gxf4 {[%emt 0:00:18]} Ndf6 {[%emt 0:01:06]} 22. Qf3 {[%emt 0:00:19]} Re7 {[%emt 0:01:46]} 23. Bd2 {[%emt 0:03:11]} Rde8 {[%emt 0:00:43]} 24. Re2 {[%emt 0:00:38]} Kh8 {[%emt 0:02:28]} 25. Rde1 {[%emt 0:00:35]} Qd7 {[%emt 0:01:01]} 26. Nb5 {[%emt 0:01:37]} Qd8 {[%emt 0:00:51]} 27. c4 {[%emt 0:00:15]} Qd7 {[%emt 0:00:24]} 28. Kh1 {[%emt 0:00:25]} Qd8 {[%emt 0:01:12]} 29. Bc3 {[%emt 0:00:20]} Kg8 {[%emt 0:00:46]} 30. e5 {[%emt 0:01:53]} Nxf4 {[%emt 0:01:43]} 31. Nxd6 {[%emt 0:00:58]} Nxe2 {[%emt 0:01:02]} 32. Rxe2 {[%emt 0:00:08]} Nh5 {[%emt 0:00:50]} 33. Nf5 {[%emt 0:11:20]} Bf4 {[%emt 0:00:52]} 34. Rg2 {[%emt 0:00:41]} Rxe5 {[%emt 0:00:32]} 35. Qxh5 {[%emt 0:01:17]} Kf8 {[%emt 0:01:12]} 36. Qxh7 {[%emt 0:02:45]} Rxf5 {[%emt 0:00:17]} 37. Rxg6 {[%emt 0:00:26]} Ke7 {[%emt 0:02:10]} 38. Re6+ {[%emt 0:00:14]} Kd7 {[%emt 0:00:33]} 39. Rxe8 {[%emt 0:00:10]} Qg5 {[%emt 0:00:32]} 40. Rg8 {[%emt 0:00:10]} 1-0

[Event "44th Chess Olympiad Open 2022"]
[Site "Chennai"]
[Date "2022.08.05"]
[Round "7.57"]
[White "Kibrom Weldegebriel Beraki"]
[Black "Munoz Santana, Jose Lisandro"]
[Result "0-1"]
[ECO "A54"]
[WhiteElo "1793"]
[BlackElo "2423"]
[Annotator "TA"]
[PlyCount "104"]
[EventDate "2022.07.29"]
[EventType "team-tourn"]
[EventCountry "IND"]
[SourceTitle "playchess.com"]
[Source "ChessBase"]
[SourceQuality "1"]
[WhiteTeam "Eritrea"]
[BlackTeam "Dominican Republic"]
[WhiteTeamCountry "ERI"]
[BlackTeamCountry "DOM"]
[TimeControl "40/5400+30:1800+30"]

{[%evp 12,104,22,21,33,38,36,27,41,43,49,48,47,29,57,47,53,46,49,36,35,29,41,31,50,35,36,-29,-7,-50,-16,-18,1,-72,-53,-88,0,-21,1,-25,0,-47,-15,-43,0,-52,-16,-18,0,-13,183,179,149,160,150,149,155,7,107,97,214,-157,-99,-161,-153,-358,-385,-367,-374,-383,-360,-639,-398,-537,-523,-876,-866,-1649,-1640,-29992,-29989,-29993,-29990,-29990,-29991,-29991,-361,-29992,-29992,-29992,-29993,-29997,-29998,-29998,-29999]} 1. d4 {[%emt 0:00:13]} Nf6 {[%emt 0:00:41]} 2. c4 {[%emt 0:00:08]} d6 {[%emt 0:00:05]} 3. Nf3 {[%emt 0:00:15]} Nbd7 {[%emt 0:00:09]} 4. Nc3 {[%emt 0:01:14]} e5 {[%emt 0:00:05]} 5. Bg5 {[%emt 0:00:29]} Be7 {[%emt 0:04:29]} 6. e3 {[%emt 0:00:43]} O-O {[%emt 0:00:23]} 7. Be2 {[%emt 0:00:26]} Ne8 {[%emt 0:02:23] A54: Old Indian Defence with Nf3, but without e4.} 8. Bxe7 {[%emt 0:01:19]} Qxe7 {[%emt 0:00:06]} 9. O-O {[%emt 0:00:30]} e4 {[%emt 0:02:12] White has an edge.} 10. Nd2 {[%emt 0:02:04][%cal Bf3d2,Bd2b3,Bb3a5][%mdl 32] [#]} f5 $146 {[%emt 0:00:07]} ({Predecessor:} 10... Nef6 11. Qc2 Re8 12. Rac1 c6 13. f3 exf3 14. Bxf3 Nf8 15. Nde4 Nxe4 16. Bxe4 Be6 {1-0 (38) Heilemann,M-Weiss,S Voelklingen 1970}) 11. b4 {[%emt 0:02:35]} Ndf6 {[%emt 0:06:42]} 12. Nb3 {[%emt 0:03:35]} Ng4 {[%emt 0:05:15]} 13. Rc1 {[%emt 0:03:59]} Bd7 {[%emt 0:06:51]} 14. c5 {[%emt 0:01:55]} Nef6 {[%emt 0:03:00]} 15. Na5 {[%emt 0:08:20]} b6 {[%emt 0:04:02]} 16. Nb3 {[%emt 0:04:29]} d5 {[%emt 0:02:37]} 17. Qd2 {[%emt 0:03:22]} Be6 {[%emt 0:04:20]} 18. Rc2 {[%emt 0:03:35]} g5 {[%emt 0:05:04][%cal Of5f4]} 19. a4 {[%emt 0:03:58]} (19. Qc1 $1 $14) 19... Kh8 {[%emt 0:04:16][%cal Of5f4]} 20. a5 {[%emt 0:00:40]} bxa5 {[%emt 0:08:15]} 21. Nxa5 {[%emt 0:03:58]} Qg7 {[%emt 0:00:15][%cal Of5f4]} (21... f4 {with more complications.} 22. h3 f3 23. gxf3 Nh6) 22. f3 {[%emt 0:01:54]} (22. Bxg4 $11 Nxg4 23. f3 exf3 24. gxf3) 22... exf3 $17 {[%emt 0:03:14]} 23. gxf3 {[%emt 0:08:19] [#]} Nh6 {[%emt 0:00:50]} (23... Nxh2 $1 $17 {[%cal Og5g4] Strongly threatening ...g4!} 24. Kxh2 f4) 24. Kh1 $1 $11 {[%emt 0:10:45]} Rg8 {[%emt 0:11:02][%cal Of5f4]} 25. Rg1 {[%emt 0:02:15]} Bd7 {[%emt 0:06:44] Inhibits Nc6.} 26. Bd1 {[%emt 0:03:52]} (26. Nb5 $11 {deserves consideration.}) 26... Qe7 $15 {[%emt 0:02:15]} 27. c6 {[%emt 0:12:19]} Be6 {[%emt 0:03:06]} 28. Rb2 {[%emt 0:01:57]} ({Better is} 28. Nb7 $11) 28... Rae8 {[%emt 0:01:27]} 29. Nb7 {[%emt 0:02:06]} Bc8 {[%emt 0:03:14]} 30. Bb3 {[%emt 0:01:13]} Bxb7 $2 {[%emt 0:02:20]} (30... Qxe3 $11 {and Black is okay.} 31. Nxd5 (31. Qxe3 Rxe3 32. Rc2 Be6 $15) 31... Qxf3+ 32. Qg2 Qxg2+ 33. Rbxg2 Nxd5 34. Bxd5 Rgf8 35. Rxg5 Ng4) 31. cxb7 $18 {[%emt 0:03:31]} c6 {[%emt 0:00:25]} 32. b5 $1 {[%emt 0:00:34][%cal Bb4b5,Bb5c6][%mdl 32]} Qxb7 {[%emt 0:02:07]} 33. bxc6 {[%emt 0:00:15]} Qf7 {[%emt 0:02:09]} 34. Nb5 {[%emt 0:05:36]} (34. Rbb1 $16) 34... Rb8 {[%emt 0:04:50]} (34... Qe7 $11) 35. Qa5 {[%emt 0:00:00] c7 is the strong threat.} Qe8 {[%emt 0:00:30] [#]} (35... g4 $16) 36. Re1 $2 {[%emt 0:03:04] [#]} (36. c7 $1 $18 {[%cal Rc7b8]} Rb6 37. Nxa7 Qxe3 38. Rbg2 $1 (38. Qxb6 Qxf3+ 39. Rgg2 Qf1+ 40. Rg1 Qf3+ 41. Rgg2 Qf1+ 42. Rg1 Qf3+ $11) 38... Qxb3 39. c8=Q Rxc8 40. Nxc8) 36... Qxc6 {[%emt 0:00:08]} ({Black should try} 36... g4 $1 {[%cal Rg4f3]} 37. Bd1 gxf3 38. Bxf3 Qxc6 39. Nxa7 Qd7 40. Rxb8 Rxb8) 37. Ba4 {[%emt 0:01:25]} (37. Nc3 $17) 37... Qe6 {[%emt 0:02:09] White must now prevent ...f4.} 38. Rc2 $2 {[%emt 0:00:22]} (38. Bd1 $17 {is a better defense.}) 38... g4 {[%emt 0:00:29]} 39. Nc7 {[%emt 0:00:39]} Qf7 {[%emt 0:00:29]} 40. Bc6 {[%emt 0:01:07][%cal Rc7d5]} Rbc8 {[%emt 0:01:11]} 41. Bb7 $2 {[%emt 0:06:09]} (41. Nxd5 gxf3 42. Nxf6 Qxf6 43. d5) 41... Rcd8 {[%emt 0:00:39]} 42. f4 {[%emt 0:04:44]} g3 {[%emt 0:00:19]} 43. h3 {[%emt 0:01:32]} g2+ {[%emt 0:00:49]} 44. Rxg2 {[%emt 0:01:40]} Qh5 {[%emt 0:14:45]} 45. Rg5 {[%emt 0:03:24]} Qxh3+ {[%emt 0:01:13]} 46. Kg1 {[%emt 0:00:14]} Rxg5+ {[%emt 0:00:28]} 47. fxg5 {[%emt 0:00:15]} Qg3+ {[%emt 0:00:09]} 48. Kf1 {[%emt 0:00:58]} Qf3+ {[%emt 0:00:19]} 49. Kg1 {[%emt 0:00:05]} Rg8 {[%emt 0:00:39] Black mates.} 50. Ne6 {[%emt 0:00:34]} Ne4 {[%emt 0:00:22]} 51. Qa2 {[%emt 0:01:14]} Nxg5 {[%emt 0:00:28] Pair of Knights!} 52. Nf4 {[%emt 0:01:03]} Nh3+ {[%emt 0:00:13] Weighted Error Value: White=0.74/Black=0.26 (precise)} 0-1

[Event "44th Chess Olympiad Open 2022"]
[Site "Chennai"]
[Date "2022.08.05"]
[Round "7.57"]
[White "Samuel Merhawi Gebrehiwet"]
[Black "Arvelo Leo, Gian Carlo"]
[Result "0-1"]
[ECO "A32"]
[WhiteElo "1616"]
[BlackElo "2176"]
[Annotator "NA"]
[PlyCount "138"]
[EventDate "2022.07.29"]
[EventType "team-tourn"]
[EventCountry "IND"]
[SourceTitle "playchess.com"]
[Source "ChessBase"]
[SourceQuality "1"]
[WhiteTeam "Eritrea"]
[BlackTeam "Dominican Republic"]
[WhiteTeamCountry "ERI"]
[BlackTeamCountry "DOM"]
[TimeControl "40/5400+30:1800+30"]

1. Nf3 {[%emt 0:00:07]} Nf6 {[%emt 0:01:14]} 2. c4 {[%emt 0:00:16]} c5 {[%emt 0:01:24]} 3. Nc3 {[%emt 0:00:09]} e6 {[%emt 0:01:55]} 4. d4 {[%emt 0:00:32]} cxd4 {[%emt 0:00:10]} 5. Nxd4 {[%emt 0:00:10]} a6 {[%emt 0:00:30]} 6. g3 {[%emt 0:00:41]} Qc7 {[%emt 0:01:21]} 7. Qd3 {[%emt 0:04:36]} Nc6 {[%emt 0:02:35]} 8. Nxc6 {[%emt 0:00:08]} dxc6 {[%emt 0:04:36]} 9. Bg2 {[%emt 0:00:52]} e5 {[%emt 0:01:32]} 10. O-O {[%emt 0:01:52]} Be6 {[%emt 0:01:39]} 11. b3 {[%emt 0:00:10]} Be7 {[%emt 0:02:26]} 12. Bb2 {[%emt 0:00:27]} O-O {[%emt 0:01:30]} 13. Ne4 {[%emt 0:00:50]} Nd7 {[%emt 0:00:28]} 14. Rad1 {[%emt 0:03:56]} Rfd8 {[%emt 0:07:35]} 15. Qc2 {[%emt 0:00:28]} a5 {[%emt 0:09:47]} 16. a4 {[%emt 0:00:21]} f5 {[%emt 0:01:18]} 17. Nc3 {[%emt 0:00:20]} Rf8 {[%emt 0:05:26]} 18. e4 {[%emt 0:00:44]} f4 {[%emt 0:00:22]} 19. gxf4 {[%emt 0:00:37]} exf4 {[%emt 0:00:31]} 20. f3 {[%emt 0:02:36]} Nc5 {[%emt 0:19:13]} 21. Ne2 {[%emt 0:01:18]} Rad8 {[%emt 0:07:54]} 22. Nd4 {[%emt 0:00:55]} Bc8 {[%emt 0:01:08]} 23. Kh1 {[%emt 0:05:25]} Bf6 {[%emt 0:05:20]} 24. Ne2 {[%emt 0:04:08]} Bxb2 {[%emt 0:02:01]} 25. Qxb2 {[%emt 0:00:08]} Nd3 {[%emt 0:01:46]} 26. Qc2 {[%emt 0:00:54]} Qd7 {[%emt 0:07:20]} 27. Nc3 {[%emt 0:00:40]} Qd4 {[%emt 0:01:11]} 28. Rd2 {[%emt 0:01:47]} Nb4 {[%emt 0:00:57]} 29. Rxd4 {[%emt 0:00:59]} Nxc2 {[%emt 0:00:03]} 30. Rxd8 {[%emt 0:01:08]} Rxd8 {[%emt 0:00:11]} 31. Rc1 {[%emt 0:00:19]} Ne3 {[%emt 0:00:46]} 32. Ne2 {[%emt 0:06:26]} g5 {[%emt 0:00:17]} 33. h4 {[%emt 0:02:10]} Rd2 {[%emt 0:00:57]} 34. Bf1 {[%emt 0:01:03]} Nxf1 {[%emt 0:02:36]} 35. Rxf1 {[%emt 0:00:12]} Rxe2 {[%emt 0:00:06]} 36. hxg5 {[%emt 0:01:20]} Rd2 {[%emt 0:01:08]} 37. Re1 {[%emt 0:00:47]} Be6 {[%emt 0:00:10]} 38. e5 {[%emt 0:00:12]} Rd4 {[%emt 0:00:11]} 39. Kg2 {[%emt 0:01:28]} Kg7 {[%emt 0:00:11]} 40. Kf2 {[%emt 0:00:36]} Rd2+ {[%emt 0:00:06]} 41. Kg1 {[%emt 0:32:30]} Kg6 {[%emt 0:30:07]} 42. Rb1 {[%emt 0:00:49]} c5 {[%emt 0:00:08]} 43. Kh1 {[%emt 0:00:43]} Kf5 {[%emt 0:00:59]} 44. Re1 {[%emt 0:01:23]} Kxg5 {[%emt 0:01:32]} 45. Rg1+ {[%emt 0:03:23]} Kh6 {[%emt 0:00:12]} 46. Re1 {[%emt 0:00:56]} Kg6 {[%emt 0:00:07]} 47. Rg1+ {[%emt 0:00:20]} Kf5 {[%emt 0:00:09]} 48. Rg7 {[%emt 0:01:01]} Rd7 {[%emt 0:00:28]} 49. Rg4 {[%emt 0:00:21]} Kxe5 {[%emt 0:00:29]} 50. Rg5+ {[%emt 0:00:11]} Bf5 {[%emt 0:00:13]} 51. Rg8 {[%emt 0:00:28]} Bc2 {[%emt 0:00:25]} 52. Ra8 {[%emt 0:01:49]} b6 {[%emt 0:00:07]} 53. Re8+ {[%emt 0:01:41]} Kd4 {[%emt 0:00:17]} 54. Re6 {[%emt 0:00:12]} Rb7 {[%emt 0:02:26]} 55. Kh2 {[%emt 0:00:30]} Bf5 {[%emt 0:01:00]} 56. Rf6 {[%emt 0:00:22]} Ke5 {[%emt 0:00:25]} 57. Rf8 {[%emt 0:00:33]} Rd7 {[%emt 0:00:11]} 58. Rb8 {[%emt 0:00:40]} Rd6 {[%emt 0:00:05]} 59. Kg2 {[%emt 0:00:33]} Bc2 {[%emt 0:00:39]} 60. Rb7 {[%emt 0:02:16]} h6 {[%emt 0:00:54]} 61. Re7+ {[%emt 0:00:46]} Kf6 {[%emt 0:00:50]} 62. Re2 {[%emt 0:01:52]} Bxb3 {[%emt 0:00:09]} 63. Re4 {[%emt 0:00:15]} Kf5 {[%emt 0:00:19]} 64. Kh3 {[%emt 0:00:29]} Bxa4 {[%emt 0:00:15]} 65. Kh4 {[%emt 0:00:37]} Bd1 {[%emt 0:00:33]} 66. Re8 {[%emt 0:00:34]} Bxf3 {[%emt 0:00:17]} 67. Re7 {[%emt 0:00:33]} Rd1 {[%emt 0:00:12]} 68. Rf7+ {[%emt 0:00:20]} Ke5 {[%emt 0:00:11]} 69. Re7+ {[%emt 0:01:04]} Kf6 {[%emt 0:00:12]} 0-1